{"text_format":"3","workbook":"xlsx","n_sheets":1,"sheets":["Календарный план 1 сем"],"not_rendered":{"external_links":1,"defined_names":10},"read":"whole","date_system":"1900"}

{"sheet":"Календарный план 1 сем","index":0,"n_rows":72,"n_cols":11,"rows_kept":72}
["Площадка","Специальность","Срок обучения","Курс (в 2025 году)","Номер группы","Вид практики","Название ПМ","сент-дек 2025","Даты практики","Дата защиты практики","Руководитель практики"]
["Б","09.02.06 Сетевое и системное администрирование","3 г. 10 м.","3 курс (после 9 класса)","14 178-23","УП","ПМ.01 Настройка сетевой инфраструктуры",36,"15.12-20.12.2025",{"$f":"RIGHT(I2,LEN(I2)-SEARCH(\"-\",I2))","v":"20.12.2025"},"Тахаутдинова К.И."]
["Б","09.02.06 Сетевое и системное администрирование","3 г. 10 м.","2 курс (после 9 класса)","15 178-23","ПП","ПМ.01 Настройка сетевой инфраструктуры",144,"13.10-07.11.2025",{"$f":"RIGHT(I3,LEN(I3)-SEARCH(\"-\",I3))","v":"07.11.2025"},"Литвинчук Д.П."]
["Б","09.02.06 Сетевое и системное администрирование",null,null,"14 188-23","УП","ПМ.01 Настройка сетевой инфраструктуры",36,"08.12-13.12.2025","13.12.2025","Тахаутдинова К.И."]
["Б","09.02.06 Сетевое и системное администрирование",null,null,"14 188-23","ПП","ПМ.01 Настройка сетевой инфраструктуры",144,"13.10-07.11.2025","07.11.2025","Литвинчук Д.П."]
["Б","09.02.06 Сетевое и системное администрирование","3 г. 10 м.","4 курс (после 9 класса)","14 78-22","УП","ПМ.02 Организация сетевого администрирования",36,"22.09-03.10.2025","03.10.2025","Тахаутдинова К.И."]
["Б","09.02.06 Сетевое и системное администрирование","3 г. 10 м.","3 курс (после 9 класса)","14 78-22","ПП","ПМ.02 Организация сетевого администрирования",252,"06.10-21.11.2025","21.11.2025","Егупова К.В."]
["Б","09.02.06 Сетевое и системное администрирование",{"$nulls":3},"УП","ПМ.03 Эксплуатация объектов сетевой инфраструктуры",36,"01.12-06.12.2025",{"$f":"RIGHT(I8,LEN(I8)-SEARCH(\"-\",I8))","v":"06.12.2025"},"Тахаутдинова К.И."]
["Б","10.02.05 Обеспечение информационной безопасности автоматизированных систем","2 г. 10 м.","3 курс (после 11 класса)","15 4-23","ПП","ПМ.04 Выполнение работ по профессии рабочего 16199 Оператор электронно-вычислительных и вычислительных машин",108,"28.10-21.11.2025",{"$f":"RIGHT(I9,LEN(I9)-SEARCH(\"-\",I9))","v":"21.11.2025"},"Зябиков К.В."]
["Б","10.02.05 Обеспечение информационной безопасности автоматизированных систем","3 г. 10 м.","3 курс (после 9 класса)","15 64-23","ПП","ПМ.01 Эксплуатация автоматизированных (информационных) систем в защищённом исполнении",180,"25.11-26.12.2025","26.12.2025","Тахаутдинова К.И."]
["Б","10.02.05 Обеспечение информационной безопасности автоматизированных систем","3 г. 10 м.","4 курс (после 9 класса)","15 54-22","УП","ПМ.02 Защита информации в автоматизированных системах программными и программно-аппаратными средствами",36,"15.12-20.12.2025","20.12.2025","Зябиков К.В."]
["Б","13.01.10 Электромонтер по ремонту и обслуживанию электрооборудования","1 г. 10 м.","2 курс (после 9 класса)","11 179-24","УП","ПМ.01 Выполнение монтажа и наладки устройств электроснабжения и электрооборудования (по отраслям)",36,"10.11-15.11.2025","15.11.2025","Торопов В.В. / мастер ПО"]
["У","13.01.10 Электромонтер по ремонту и обслуживанию электрооборудования",null,null,"11 179-24","ПП","ПМ.01 Выполнение монтажа и наладки устройств электроснабжения и электрооборудования (по отраслям)",108,"15.09-03.10.2025","03.10.2025","Торопов В.В. / мастер ПО"]
["У","13.01.10 Электромонтер по ремонту и обслуживанию электрооборудования",null,null,"11 189-24","УП","ПМ.01 Выполнение монтажа и наладки устройств электроснабжения и электрооборудования (по отраслям)",36,"17.11-22.11.2025","22.11.2025","Бурин / мастер ПО"]
["У","13.01.10 Электромонтер по ремонту и обслуживанию электрооборудования","1 г. 10 м.","1 курс (после 9 класса)","11 189-24","ПП","ПМ.01 Выполнение монтажа и наладки устройств электроснабжения и электрооборудования (по отраслям)",108,"15.09-03.10.2025","03.10.2025","Бурин / мастер ПО"]
["У","21.02.06 Информационные системы обеспечения градостроительной деятельности","3 г. 10 м.","4 курс (после 9 класса)","10 109-22","УП","ПМ.03 Проведение технической инвентаризации и технической оценки объектов недвижимости",36,"08.12-13.12.2025","13.12.2025","Первушина Я.В."]
["К","21.02.06 Информационные системы обеспечения градостроительной деятельности","3 г. 10 м.","3 курс (после 9 класса)","10 109-22","ПП","ПМ.03 Проведение технической инвентаризации и технической оценки объектов недвижимости",108,"18.11-05.12.2025","05.12.2025","Шевченко Е.А."]
["К","21.02.19 Землеустройство","2 г. 10 м.","3 курс (после 11 класса)","20 28-23","УП","ПМ.03 Вспомогательная деятельность в сфере государственного кадастрового учета и (или) государственной регистрации прав на объекты недвижимости, определения кадастровой стоимости",36,"17.11-22.11.2025","22.11.2025","Бикеева М.В."]
["К","21.02.19 Землеустройство","2 г. 10 м.","2 курс (после 11 класса)","20 28-23","ПП","ПМ.03 Вспомогательная деятельность в сфере государственного кадастрового учета и (или) государственной регистрации прав на объекты недвижимости, определения кадастровой стоимости",144,"24.11-19.12.2025","19.12.2025","Бикеева М.В."]
["К","27.02.04 Автоматические системы управления","2 г. 10 м.","2 курс (после 9 класса)","18 112-24","УП","ПМ.04 Выполнение работ по профессии рабочего/должности служащего 18559 Слесарь ремонтник",36,"17.11-26.12.2025","26.12.2025","Долматов К.В./Шефер Е.В."]
["У","27.02.04 Автоматические системы управления",null,null,"18 113-24","УП","ПМ.04 Выполнение работ по профессии рабочего/должности служащего 18559 Слесарь ремонтник",36,"17.11-26.12.2025","26.12.2025","Долматов К.В./ Шефер Е.В."]
["У","27.02.06 Метрологический контроль средств измерения","2 г. 10 м.","2 курс (после 9 класса)","21 114-24","УП","ПМ.03 Выполнение работ по  профессии рабочего 18559 Слесарь ремонтник",72,"17.11-26.12.2025","26.12.2025","Долматов К.В./ Шефер Е.В."]
["У","27.02.07 Управление качеством промышленной продукции","2 г. 10 м.","2 курс (после 9 класса)","17 196-24 (Климов)","УП","ПМ.04 Выполнение работ по  профессии рабочего 40.199 Контролер  станочных и слесарных работ                                                                                                                                                                                                                                            ",36,"28.10-01.11.2025","01.11.2025","ОДК Климов"]
["У","27.02.07 Управление качеством промышленной продукции","2 г. 10 м.","3 курс (после 9 класса)","17 192-23","УП","ПМ.01 Контроль качества продукции на каждой стадии производственного процесса",36,"10.11-15.11.2025","15.11.2025","Лобанова Е.А."]
["У","27.02.07 Управление качеством промышленной продукции",null,null,"17 192-23","ПП","ПМ.01 Контроль качества продукции на каждой стадии производственного процесса",72,"25.11-05.12.2025","05.12.2025","Таскуев М.А."]
["У","27.02.07 Управление качеством промышленной продукции","2 г. 10 м.","2 курс (после 9 класса)","17 192-23","ПП","ПМ.02 Подготовка, оформление и учет технической документации",72,"08.12-19.12.2025","19.12.2025","Таскуев М.А."]
["У","27.02.07 Управление качеством промышленной продукции","2 г. 10 м.","3 курс (после 9 класса)","17 193-23 (Климов)","УП","ПМ.01 Контроль качества продукции на каждой стадии производственного процесса",36,"27.10-01.11.2025","01.11.2025","Лобанова Е.А."]
["У","27.02.07 Управление качеством промышленной продукции","2 г. 10 м.","2 курс (после 9 класса)","17 193-23 (Климов)","ПП","ПМ.01 Контроль качества продукции на каждой стадии производственного процесса",72,"05.11-17.11.2025","17.11.2025","Таскуев М.А."]
["У","27.02.07 Управление качеством промышленной продукции","2 г. 10 м.","2 курс (после 9 класса)","17 193-23 (Климов)","УП","ПМ.06 Выполнение работ по  профессии рабочего 13026 Контролер по термообработке",36,"23.09-29.09.2025","29.09.2025","Лобанова Е.А."]
["У","27.02.07 Управление качеством промышленной продукции","2 г. 10 м.","2 курс (после 9 класса)","17 193-23 (Климов)","ПП","ПМ.06 Выполнение работ по  профессии рабочего 13026 Контролер по термообработке",72,"30.09-13.10.2025","13.10.2025","Лобанова Е.А."]
["У","27.02.07 Управление качеством промышленной продукции","2 г. 10 м.","2 курс (после 9 класса)","17 193-23 (Климов)","УП","ПМ.07 Выполнение работ по  профессии рабочего 12959 Контролер измерительных приборов и специального инструмента",36,"09.12-15.12.2025","15.12.2025","Таскуев М.А."]
["У","27.02.07 Управление качеством промышленной продукции","2 г. 10 м.","2 курс (после 9 класса)","17 193-23 (Климов)","ПП","ПМ.07 Выполнение работ по  профессии рабочего 12959 Контролер измерительных приборов и специального инструмента",72,"16.12-29.12.2025","29.12.2025","Таскуев М.А."]
["У","38.02.01 Экономика и бухгалтерский учет\n (по отраслям)","2 г. 10 м.","3курс (после 9 класса)","01 77-23","УП","ПМ.03 Проведение расчетов с бюджетом и внебюджетными фондами",36,"01.12-06.12.2025","06.12.2025","Логинова Н.Н."]
["Б","38.02.01 Экономика и бухгалтерский учет\n (по отраслям)",null,null,"01 77-23","ПП","ПМ.03 Проведение расчетов с бюджетом и внебюджетными фондами",108,"14.10-31.10.2025","31.10.2025","Логинова Н.Н."]
["Б","38.02.01 Экономика и бухгалтерский учет\n (по отраслям)",null,null,"01 79-23","УП","ПМ.03 Проведение расчетов с бюджетом и внебюджетными фондами",36,"08.12-13.12.2025","13.12.2025","Каменюк Е.В."]
["Б","38.02.01 Экономика и бухгалтерский учет\n (по отраслям)",null,"2 курс (после 9 класса)","01 79-23","ПП","ПМ.03 Проведение расчетов с бюджетом и внебюджетными фондами",108,"14.10-31.10.2025","31.10.2025","Каменюк Е.В."]
["Б","38.02.02 Страховое дело (по отраслям)","2 г. 10 м.","3курс (после 9 класса)","02 75-23","УП","ПМ.05 Страхование иное, чем страхование жизни ",36,"15.12-20.12.2025","20.12.2025","Хадонова Б.Т."]
["У","38.02.02 Страховое дело (по отраслям)","2 г. 10 м.","2 курс (после 9 класса)","02 75-23","ПП","ПМ.05 Страхование иное, чем страхование жизни ",180,"11.11-12.12.2025","12.12.2025","Лобанова Е.А."]
["У","38.02.03 Операционная деятельность в логистике","1 г 10 м","2 курс (после 11 класса)","03 12-24","УП","ПМ.02 Планирование и организация логистических процессов в производстве и распределении",36,"17.11-22.11.2025","22.11.2025","Кузьмицкий Д.В."]
["К","38.02.03 Операционная деятельность в логистике","1 г 10 м",null,"03 12-24","ПП","ПМ.03 Планирование и организация логистических процессов в транспортировке и сервисном обслуживании",144,"02.12-26.12.2025","26.12.2025","Пфайфер М.Р."]
["К","38.02.03 Операционная деятельность в логистике","1 г 10 м",null,"03 13-24","УП","ПМ.02 Планирование и организация логистических процессов в производстве и распределении",36,"17.11-22.11.2025","22.11.2025","Кузьмицкий Д.В."]
["К","38.02.03 Операционная деятельность в логистике","1 г 10 м","1 курс (после 11 класса)","03 13-24","ПП","ПМ.03 Планирование и организация логистических процессов в транспортировке и сервисном обслуживании",144,"02.12-26.12.2025","26.12.2025","Филатова О.В."]
["К","38.02.03 Операционная деятельность в логистике","2 г 10 м","3 курс (после 9 класса)","03 70-23","ПП","ПМ.01 Планирование и организация логистических процессов в закупках и складировании",144,"21.10-14.11.2025","14.11.2025","Овсянникова Ю.А."]
["К","38.02.03 Операционная деятельность в логистике","2 г 10 м",null,"03 70-23","ПП","ПМ.03 Планирование и организация логистических процессов в транспортировке и сервисном обслуживании",144,"17.11-12.12.2025","12.12.2025","Сильченко К.А."]
["К","38.02.03 Операционная деятельность в логистике","2 г 10 м",null,"03 76-23","ПП","ПМ.01 Планирование и организация логистических процессов в закупках и складировании",144,"21.10-14.11.2025","14.11.2025","Овсянникова Ю.А."]
["К","38.02.03 Операционная деятельность в логистике","2 г 10 м",null,"03 76-23","ПП","ПМ.03 Планирование и организация логистических процессов в транспортировке и сервисном обслуживании",144,"17.11-12.12.2025","12.12.2025","Цимбалист И.А."]
["К","38.02.03 Операционная деятельность в логистике","2 г 10 м",null,"03 80П-23","ПП","ПМ.01 Планирование и организация логистических процессов в закупках и складировании",144,"21.10-14.11.2025","14.11.2025","Кузьмицкий Д.В."]
["К","38.02.03 Операционная деятельность в логистике","2 г 10 м","2 курс (после 9 класса)","03 80П-23","ПП","ПМ.03 Планирование и организация логистических процессов в транспортировке и сервисном обслуживании",144,"17.11-12.12.2025","12.12.2025","Кузьмицкий Д.В."]
["К","38.02.06 Финансы","1 г. 10 м.","2 курс (после 11 класса)","06 16-24","ПП","ПМ.02 Ведение расчетов с бюджетами бюджетной системы Российской Федерации",144,"11.11-05.12.2025","05.12.2025","Каменюк Е.В."]
["Б","38.02.07 Банковское дело","1 г 10 м","2 курс (после 11 класса)","07 8-24","ПП","ПМ.01 Ведение расчетных операций физических и юридических лиц",180,"17.11-19.12.2025","19.12.2025","Лепехо Е.С."]
["У","38.02.07 Банковское дело","2 г 10 м","3 курс (после 9 класса)","07 71-23","ПП","ПМ.01 Ведение расчетных операций",180,"17.11-19.12.2025","19.12.2025","Лепехо Е.С."]
["У","38.02.07 Банковское дело",null,null,"07 71-23","УП","ПМ.03 Выполнение работ по должности служащего 20002 Агент банка",36,"28.10-01.11.2025","01.11.2025","Бусень Н.В."]
["У","38.02.07 Банковское дело",null,null,"07 72-23","ПП","ПМ.01 Ведение расчетных операций",180,"17.11-19.12.2025","19.12.2025","Горбунова Н.А."]
["У","38.02.07 Банковское дело",null,null,"07 72-23","УП","ПМ.03 Выполнение работ по должности служащего 20002 Агент банка",36,"01.11-10.11.2025","10.11.2025","Бусень Н.В."]
["У","38.02.07 Банковское дело",null,null,"07 73П-23","ПП","ПМ.01 Ведение расчетных операций",180,"17.11-19.12.2025","19.12.2025","Дивлеткильдиева В.Ф."]
["У","38.02.07 Банковское дело","2 г 10 м","2 курс (после 9 класса)","07 73П-23","УП","ПМ.03 Выполнение работ по должности служащего 20002 Агент банка",36,"10.11-15.11.2025","15.11.2025","Бусень Н.В."]
["У","42.02.01 Реклама","2 г. 10 м. (проф.)","3 курс (после 9 класса)","13 120-23","УП","ПМ.02 Производство рекламной продукции",36,"01.12-06.12.2025","06.12.2025","Левченкова Ю.В."]
["Б","42.02.01 Реклама","2 г. 10 м. (проф.)","2 курс (после 9 класса)","13 120-23","ПП","ПМ.02 Производство рекламной продукции",216,"21.10-28.11.2025","28.11.2025","Захаренкова Е.О."]
["Б","42.02.01 Реклама","3 г. 10 м.","4 курс (после 9 класса)","13 110-22","УП","ПМ.02 Производство рекламной продукции",72,"10.11-22.11.2025","22.11.2025","Левченкова Ю.В."]
["Б","42.02.01 Реклама","3 г. 10 м.","3 курс (после 9 класса)","13 110-22","ПП","ПМ.02 Производство рекламной продукции",180,"07.10-07.11.2025","07.11.2025","Левченкова Ю.В."]
["Б","42.02.02 Издательское дело","1 г. 10 м.","2 курс (после 11 класса)","08 20-24","УП","ПМ.02 Моделирование издательского продукта",36,"08.12-13.12.2025","13.12.2025","Федорова О.П."]
["К","42.02.02 Издательское дело","1 г. 10 м.","1 курс (после 11 класса)","08 20-24","ПП","ПМ.02 Моделирование издательского продукта",144,"11.11-05.12.2025","05.12.2025","Максимова А.А."]
["К","42.02.02 Издательское дело","2 г. 10 м.","3 курс (после 9 класса)","08 117-23","ПП","ПМ.03 Управление и организация деятельности производственного подразделения",72,"29.09-10.10.2025","10.10.2025","Козлова К.Е."]
["К","42.02.02 Издательское дело",null,null,"08 127-23","ПП","ПМ.03 Управление и организация деятельности производственного подразделения",72,"13.10-24.10.2025","24.10.2025","Козлова К.Е."]
["К","42.02.02 Издательское дело",null,null,"08 137П-23","ПП","ПМ.03 Управление и организация деятельности производственного подразделения",72,"27.10-07.11.2025","07.11.2025","Ульзутуева Е.А."]
["К","46.02.01 Документационное обеспечение управления и архивоведение","1 г. 10 м.","2 курс (после 11 класса)","09 21-24","УП","ПМ.03 Выполнение работ по должности служащего 21299 Делопроизводитель",36,"10.11-29.11.2025","29.11.2025","Мандрыкина А.А."]
["Б","46.02.01 Документационное обеспечение управления и архивоведение","1 г. 10 м.","1 курс (после 11 класса)","09 21-24","ПП","ПМ.03 Выполнение работ по должности служащего 21299 Делопроизводитель",108,"02.12-19.12.2025",{"$f":"RIGHT(I67,LEN(I67)-SEARCH(\"-\",I67))","v":"19.12.2025"},"Зорченко Е.В."]
["Б","46.02.01 Документационное обеспечение управления и архивоведение","2 г. 10 м.","3 курс (после 9 класса)","09 118-23","УП","ПМ.03 Выполнение работ по должности служащего 21299 Делопроизводитель",36,"12.11-29.11.2025",{"$f":"RIGHT(I68,LEN(I68)-SEARCH(\"-\",I68))","v":"29.11.2025"},"Зорченко Е.В."]
["Б","46.02.01 Документационное обеспечение управления и архивоведение","2 г. 10 м.","2 курс (после 9 класса)","09 118-23","ПП","ПМ.03 Выполнение работ по должности служащего 21299 Делопроизводитель",108,"02.12-19.12.2025",{"$f":"RIGHT(I69,LEN(I69)-SEARCH(\"-\",I69))","v":"19.12.2025"},"Мандрыкина А.А."]
["Б","54.01.20 Графический дизайнер","1 г. 10 м.","2 курс (после 11 класса)","19 147-24","УП","ПМ.02 Создание графических дизайн-макетов ",36,"28.10-01.11.2025",{"$f":"RIGHT(I70,LEN(I70)-SEARCH(\"-\",I70))","v":"01.11.2025"},"Николаева В.А./ мастер ПО"]
["Б","54.01.20 Графический дизайнер","1 г. 10 м.","2 курс (после 11 класса)","19 147-24","ПП","ПМ.02 Создание графических дизайн-макетов ",216,"11.11-19.12.2025",{"$f":"RIGHT(I71,LEN(I71)-SEARCH(\"-\",I71))","v":"19.12.2025"},"Николаева В.А./ мастер ПО"]
["Б"]